[Event "Lliga Catalana DH 2023"]
[Site "Catalonia"]
[Date "2023.03.04"]
[Round "7.5"]
[White "Saguillo Gonzalez, Oriol"]
[Black "Salgado Allaria, Carlos"]
[Result "0-1"]
[ECO "B40"]
[WhiteElo "2168"]
[BlackElo "2234"]
[Annotator "TA"]
[PlyCount "80"]
[EventDate "2023.01.24"]
[EventType "team-tourn"]
[EventCountry "ESP"]
[SourceTitle "playchess.com"]
[Source "ChessBase"]
[SourceQuality "1"]
[TimeControl "40/5400+30:1800+30"]

{[%evp 11,80,45,50,18,24,-6,0,-7,0,-28,-21,-21,-22,-39,32,-12,6,-23,-21,-22,-23,-28,-32,-30,0,0,0,0,0,0,25,23,24,0,16,12,23,23,25,0,0,0,12,0,34,0,39,8,14,8,33,0,12,-47,-47,-47,-49,-54,0,0,0,0,0,0,0,-8,-7,-353,-350,-349,-344]} 1. e4 {[%emt 0:00:04]} c5 {[%emt 0:00:52]} 2. Nf3 {[%emt 0:00:04]} e6 {[%emt 0:00:07]} 3. d4 {[%emt 0:00:07]} cxd4 {[%emt 0:00:07]} 4. Nxd4 {[%emt 0:00:02]} Qb6 {[%emt 0:00:52]} 5. Nb3 {[%emt 0:00:59]} Qc7 {[%emt 0:00:18]} 6. Nc3 {[%emt 0:05:54]} a6 {[%emt 0:00:16]} 7. Be2 {[%emt 0:04:54] B40: Sicilian: 2...e6, Unusual lines.} b5 {[%emt 0:02:23]} 8. O-O {[%emt 0:03:32]} Bb7 {[%emt 0:00:19]} 9. a3 {[%emt 0:01:44] The position is equal.} Nf6 {[%emt 0:00:55]} 10. Bf3 {[%emt 0:01:12][%cal Oe4e5]} d6 {[%emt 0:03:26]} 11. Be3 {[%emt 0:05:34]} Nbd7 {[%emt 0:01:15] [#]} 12. Qd4 $146 {[%emt 0:07:31]} ({Predecessor:} 12. Nd2 Be7 13. h3 O-O 14. g3 Rac8 15. Bg2 Ne5 16. f4 Nc4 17. Nxc4 Qxc4 18. Qd4 {½-½ Nassr,L (1854)-Celik,E (2014) Wch U20 Girls 36th 2018 (2)}) 12... e5 {[%emt 0:11:30]} (12... Rb8 $15) 13. Qd2 {[%emt 0:05:30]} (13. Qb4 $5 {[%cal Ra3a4]}) 13... Be7 {[%emt 0:12:53]} 14. Nc1 {[%emt 0:09:12]} Nb6 {[%emt 0:00:00]} 15. Bxb6 {[%emt 0:03:37]} Qxb6 {[%emt 0:00:00]} 16. Nd3 {[%emt 0:09:10]} Rc8 {[%emt 0:01:43]} 17. Nb4 {[%emt 0:02:12]} a5 {[%emt 0:08:55]} 18. Nbd5 {[%emt 0:00:00]} Nxd5 {[%emt 0:00:02]} 19. Nxd5 {[%emt 0:00:00]} Bxd5 {[%emt 0:04:34]} 20. Qxd5 {[%emt 0:03:18]} O-O {[%emt 0:01:49]} 21. c3 {[%emt 0:05:20]} Rc5 {[%emt 0:09:09]} 22. Qb3 {[%emt 0:02:27]} Rb8 {[%emt 0:03:25]} 23. Rfd1 {[%emt 0:06:17]} Qc6 {[%emt 0:04:08]} 24. Rd3 {[%emt 0:04:49]} Rb6 {[%emt 0:11:56]} 25. Rad1 {[%emt 0:09:01]} g6 {[%emt 0:01:03]} 26. Rd5 {[%emt 0:01:44]} Kg7 {[%emt 0:00:00]} 27. R1d3 {[%emt 0:06:36]} Rc4 {[%emt 0:01:38]} 28. h3 {[%emt 0:00:00]} Rc5 {[%emt 0:05:31]} 29. Be2 {[%emt 0:00:00]} Rb7 {[%emt 0:01:18]} 30. Rd2 {[%emt 0:00:00]} Rb6 {[%emt 0:00:51]} 31. R2d3 {[%emt 0:00:00]} Rb7 {[%emt 0:00:08] [#]} 32. h4 {[%emt 0:00:00]} Bxh4 $15 {[%emt 0:02:21]} 33. Rxd6 {[%emt 0:00:00]} Qxe4 {[%emt 0:00:08]} 34. Qd1 {[%emt 0:00:35] aiming for g3.} Re7 {[%emt 0:01:26]} (34... Qf5 $15 {is superior.} 35. Rf3 Qc8) 35. b4 $11 {[%emt 0:00:36]} axb4 {[%emt 0:01:15]} 36. axb4 {[%emt 0:00:06]} Rc8 {[%emt 0:02:12]} 37. Bf3 {[%emt 0:00:42]} Qc4 {[%emt 0:02:11] Hoping for ...e4.} 38. Bd5 {[%emt 0:00:26]} Qc7 {[%emt 0:00:54]} 39. Bc6 $2 {[%emt 0:01:27][%mdl 8192] [#]} (39. Be4 $1 $11 {and White has nothing to worry.}) 39... Bxf2+ $1 $19 {[%emt 0:00:26][%mdl 576] Decoy} 40. Kxf2 {[%emt 0:00:19] Threatens to win with Qf3.} Qb6+ {[%emt 0:00:05] Weighted Error Value: White=0.24 (precise) /Black=0.12 (very precise)} 0-1

[Event "Lliga Catalana DH 2023"]
[Site "Catalonia"]
[Date "2023.03.04"]
[Round "7.5"]
[White "Rodriguez Garcia, Yuliesky"]
[Black "Alonso Moyano, Jonathan"]
[Result "1/2-1/2"]
[ECO "A87"]
[WhiteElo "2161"]
[BlackElo "2339"]
[Annotator "TA"]
[PlyCount "86"]
[EventDate "2023.01.24"]
[EventType "team-tourn"]
[EventCountry "ESP"]
[SourceTitle "playchess.com"]
[Source "ChessBase"]
[SourceQuality "1"]
[TimeControl "40/5400+30:1800+30"]

{[%evp 17,86,33,34,20,45,18,25,22,17,28,27,15,11,0,0,0,0,0,0,0,0,0,0,0,29,22,34,-29,-35,-27,30,-39,16,9,28,0,0,0,0,0,20,0,163,155,190,164,208,210,302,306,279,270,330,116,135,106,114,56,85,0,0,0,0,0,0,0,0,0,0,0,0]} 1. Nf3 f5 2. g3 Nf6 3. Bg2 d6 4. d4 g6 5. O-O Bg7 6. c4 O-O 7. Nc3 Qe8 8. d5 Na6 $1 {The main line 8...Na6 scores better than 8...a5.} 9. Be3 {has lost popularity (9.Nd4).} c6 10. h3 {A87: Dutch Defence: Leningrad System: 5 Nf3.} Bd7 11. Qd2 (11. Qb3 $5 {[%cal Rb3b7]}) 11... cxd5 12. cxd5 {[#] White has an edge.} Nc5 $146 ({Predecessor:} 12... b6 13. Bh6 Nc5 14. Bxg7 Kxg7 15. Qd4 h6 16. b4 Na4 17. Rac1 Qf7 18. Nxa4 Bxa4 {½-½ Schauerte,K-Jahnke,K NRW-ch U20 Girls 1989 (4)}) 13. Bxc5 dxc5 14. Ne5 b5 {[%cal Bb7b5,Bb5b4][%mdl 32]} 15. a4 b4 16. Nb5 {aiming for Nc7. Excellent horsemanship.} Ne4 17. Bxe4 {[%cal Od5d6]} Bxe5 (17... fxe4 $2 18. Nc7 Qd8 19. Nxd7 (19. Nxa8 $2 Bxe5 20. Rac1 Bxh3 $19) 19... Qxd7 20. Nxa8 $18) 18. d6 fxe4 19. Qd5+ Qf7 20. Qxe5 Bxh3 21. dxe7 {Active counter play!} Rfe8 {Black is weak on the dark squares} 22. Rfc1 (22. Nd6 $14 Qxe7 23. Qd5+ Be6 24. Qxc5) 22... Rxe7 $11 23. Qxc5 a5 (23... Rf8 $142 $1) 24. Qe3 (24. Nd6 $11 Qe6 25. Rc4) 24... Rd8 (24... Rf8 $15) 25. Rd1 Rd5 26. Rd4 (26. Nd6 {with more complications.} Qe6 27. Rxd5 Qxd5 28. Qb6) 26... Rxd4 27. Nxd4 {[%cal Bb5d4,Bd4f3,Bf3e5][%mdl 32]} Qd5 {Against Nc6} 28. Rc1 {[%cal Ba1c1,Bc1c5,Bc5a5,Ba5a8][%mdl 32]} h5 29. b3 Kh7 $2 (29... Rf7 $11 {and Black is okay.}) 30. Nf3 $1 $18 {Hoping for Ng5+.} Bf5 31. Rc5 Qd1+ 32. Kh2 {And now Nd4 would win.} Rd7 {Wards off Nd4} (32... Qd8 $142) 33. Ne5 Re7 34. Rxa5 Qf1 {[#]} 35. g4 $2 hxg4 $16 36. Qg3 {Intending Qh4+ and mate.} Kg7 {[#]} 37. Qh4 ({Of course not} 37. Nxg4 $6 Bxg4 38. Rg5 Rf7 $11) (37. e3 $1 $16) 37... Rc7 $14 38. Ra8 {Really sharp!} ({Much weaker is} 38. Nxg4 $6 Bxg4 39. Ra6 Rf7 $11) ({Better is} 38. Ra6 $16 Qxe2 39. Ra8 g3+ 40. Kxg3 (40. Qxg3 Rc2 $11)) 38... Qh3+ $11 {The position is equal.} 39. Qxh3 gxh3 40. Nc4 $1 Be6 41. Rb8 Bxc4 42. bxc4 Rxc4 43. Kxh3 Rc2 {White really could win this.   Weighted Error Value: White=0.28 (precise) /Black=0.23 (precise)} 1/2-1/2

[Event "Lliga Catalana DH 2023"]
[Site "Catalonia"]
[Date "2023.03.04"]
[Round "7.6"]
[White "Perez Manas, Benjamin"]
[Black "Pros Heras, Jordi"]
[Result "1-0"]
[ECO "C07"]
[WhiteElo "2192"]
[BlackElo "2054"]
[Annotator "TA"]
[PlyCount "107"]
[EventDate "2023.01.24"]
[EventType "team-tourn"]
[EventCountry "ESP"]
[SourceTitle "playchess.com"]
[Source "ChessBase"]
[SourceQuality "1"]
[TimeControl "40/5400+30:1800+30"]

{[%evp 10,107,25,15,26,12,10,16,11,14,22,0,6,7,6,12,8,8,4,0,0,-14,-5,-20,-18,-22,-15,-19,0,-4,-8,-27,-21,-19,0,-10,-8,-11,3,0,0,0,0,0,7,5,11,7,8,10,9,8,14,17,17,4,7,0,0,-8,0,0,-2,-2,-20,-12,0,0,0,0,0,0,24,24,24,24,40,13,29,29,33,28,35,10,10,2,106,86,105,108,496,467,433,418,399,373,1575,1570,1331,1193]} 1. e4 e6 2. d4 d5 3. Nd2 c5 4. Ngf3 cxd4 5. exd5 Qxd5 6. Bc4 Qd7 {C07: French Tarrasch: 3...c5, 4 Ngf3 and 4 exd5 Qxd5.} 7. O-O Nc6 8. Nb3 {[%cal Rb3d4]} a6 {The position is equal.} 9. Nbxd4 Nxd4 10. Nxd4 Qc7 {Prevents Bf4.} 11. Bb3 {11.Bd3 gains popularity.} Bd6 12. h3 Nf6 {[%cal Bg8f6,Bf6e4,Be4c5][%mdl 32] Repels Qg4} 13. Bg5 Ne4 14. Be3 Nc5 15. Bc4 O-O {[#]} 16. c3 $146 ({Predecessor:} 16. a4 b6 17. b3 Bb7 18. Qg4 Rad8 19. Rad1 Kh8 20. Rfe1 f5 21. Qh5 e5 22. Nf3 Bxf3 23. Qxf3 {1-0 Lu,S (2641)-Gao,R (2546) CHN-ch rapid 2017 (4)}) 16... Bd7 17. Qc2 Rac8 18. Rfd1 Bh2+ 19. Kh1 Bf4 20. Re1 Bxe3 21. Rxe3 Qf4 (21... b5 $5 {[%cal Rb5c4]} 22. Bb3 g6 $11) 22. Rae1 {[%cal Ba1e1,Be1e4,Be4d4][%mdl 32]} b5 23. Bf1 b4 {[%mdl 64] Deflection} 24. cxb4 (24. Rd1 $5 {[%cal Rd4f3]}) 24... Qxd4 25. bxc5 Rxc5 26. Rc3 Ba4 27. Re4 Rxc3 (27... Bxc2 {simplifies} 28. Rxd4 Rxc3 29. bxc3 a5) 28. bxc3 {[%mdl 64] Pin} Bxc2 29. Rxd4 $11 {[%mdl 4096] Endgame KRB-KRB} a5 30. Bb5 Ra8 31. c4 Kf8 32. c5 {c6 would be deadly.} Ra7 33. a4 Ke7 34. f4 Bb3 35. Kg1 Rc7 36. Rd3 Bd5 37. Rc3 Kd8 38. Kf2 Re7 39. g3 Kc7 40. Rd3 g6 41. Ke3 f6 42. h4 h6 43. Rd2 Rg7 44. Kd4 Re7 45. Kc3 Rg7 46. Rd1 Rg8 47. Re1 Rg7 (47... g5 $11) 48. Kd4 Rg8 49. Bc4 $1 {White is more active.} Rd8 {[%mdl 8192] A mistake that costs the game.} (49... Bxc4 $16 50. Kxc4 Re8) 50. Bxd5 $18 Rxd5+ 51. Kc4 Kd7 {[#]} 52. c6+ $1 {[%cal Bc5c6,Bc6c7][%mdl 32]} Kd6 $2 {[#]} (52... Kxc6 $2 53. Rxe6+ Rd6 54. Rxd6+ Kxd6 55. Kb5 $18) (52... Kc7 53. Rxe6 Rf5) 53. Rxe6+ $3 {[%mdl 576] Deflection} Kxe6 54. c7 {Weighted Error Value: White=0.04 (flawless) /Black=0.23 (precise)} 1-0

[Event "Lliga Catalana DH 2023"]
[Site "Catalonia"]
[Date "2023.03.04"]
[Round "7.6"]
[White "Gutierrez Clares, Joaquim"]
[Black "Escandell Mari, Juan Carlos"]
[Result "0-1"]
[ECO "E12"]
[WhiteElo "2191"]
[BlackElo "2159"]
[Annotator "TA"]
[PlyCount "74"]
[EventDate "2023.01.24"]
[EventType "team-tourn"]
[EventCountry "ESP"]
[SourceTitle "playchess.com"]
[Source "ChessBase"]
[SourceQuality "1"]
[TimeControl "40/5400+30:1800+30"]

{[%evp 19,74,0,12,-1,59,-15,-22,-22,0,0,-7,-31,-8,0,-16,-6,0,-16,0,-6,56,32,54,32,66,64,97,0,14,0,0,-36,-32,-30,-39,-202,-183,-209,-195,-192,-217,-384,-364,-496,-498,-489,-479,-503,-381,-5389,-2393,-29987,-29988,-29989,-29990,-29990,-29991]} 1. d4 {[%emt 0:00:35]} Nf6 {[%emt 0:00:29]} 2. c4 {[%emt 0:00:13]} e6 {[%emt 0:00:11]} 3. Nf3 {[%emt 0:00:34]} b6 {[%emt 0:00:23]} 4. a3 {[%emt 0:00:34]} Bb7 {[%emt 0:00:43]} 5. Nc3 {[%emt 0:00:08]} d5 {[%emt 0:00:19]} 6. cxd5 {[%emt 0:00:22]} Nxd5 {[%emt 0:00:18]} 7. Qc2 {[%emt 0:00:31]} Be7 {[%emt 0:00:57]} 8. Bd2 {[%emt 0:00:29]} O-O {[%emt 0:01:03]} 9. e4 {[%emt 0:03:25]} Nxc3 {[%emt 0:00:09]} 10. Bxc3 {[%emt 0:00:18]} c5 {[%emt 0:02:39]} 11. Rd1 {[%emt 0:05:47] E12: Queen's Indian: Unusual White 4th moves, 4 a3, 4 Nc3 Bb7 5 a3 and 4 Nc3 Bb7 .} Qc7 {[%emt 0:13:38] [#]} (11... cxd4 $11 12. Rxd4 Qc7) 12. Bd3 $146 {[%emt 0:04:58]} ({Better is} 12. d5 $1 $14) ({Predecessor:} 12. d5 exd5 13. exd5 Nd7 14. Bd3 g6 15. h4 Bxd5 16. h5 Rae8 17. hxg6 Bf6+ 18. Kf1 Bxf3 19. gxf7+ Rxf7 20. Bxh7+ {1-0 Giffard,N (2260)-Steedman,J (2132) WchT Seniors 65 2018 (7.5)}) 12... cxd4 $11 {[%emt 0:02:43]} 13. Nxd4 {[%emt 0:00:55][%cal Oe4e5] The position is equal.} a6 {[%emt 0:03:24]} 14. O-O {[%emt 0:11:24]} Nd7 {[%emt 0:14:05]} 15. Rc1 {[%emt 0:06:30][%cal Oe4e5]} Rfd8 {[%emt 0:07:34]} 16. Qe2 {[%emt 0:16:45]} Nc5 {[%emt 0:03:42] Threatens to win with ...e5.} 17. Bc2 {[%emt 0:03:27]} Bg5 {[%emt 0:17:38]} 18. Rcd1 {[%emt 0:06:36]} e5 {[%emt 0:06:13]} 19. Nf5 {[%emt 0:01:14][%cal Of2f4]} Bf6 {[%emt 0:14:01]} (19... g6 $11 20. Ne3 Nxe4 21. Bxe4 Bxe4) 20. Rc1 {[%emt 0:12:06]} (20. Qf3 $5) 20... Bc6 {[%emt 0:05:13]} 21. Rfe1 {[%emt 0:03:06]} Rd7 {[%emt 0:00:00]} 22. Qg4 {[%emt 0:01:16]} Kh8 {[%emt 0:00:00] [#]} 23. Re3 {[%emt 0:01:23]} (23. Ne3 $1 $16) 23... Ne6 {[%emt 0:00:00][%cal Bc5e6,Be6f4,Bf4d3][%mdl 32]} 24. Rce1 {[%emt 0:11:22]} Rad8 {[%emt 0:00:00]} 25. Bb3 {[%emt 0:00:56]} Nf4 $1 {[%emt 0:00:00]} 26. g3 {[%emt 0:05:01]} Nd3 {[%emt 0:01:49]} 27. Rd1 $2 {[%emt 0:01:21] [#] Loses the game.} (27. Ra1 $1 $15) 27... Nc5 $1 $19 {[%emt 0:02:51]} 28. Rxd7 {[%emt 0:00:30]} Bxd7 {[%emt 0:00:54]} 29. Bc2 {[%emt 0:01:49]} g6 {[%emt 0:00:22]} 30. b4 $2 {[%emt 0:01:07]} (30. f4 gxf5 31. exf5) 30... gxf5 {[%emt 0:00:33]} 31. exf5 {[%emt 0:00:09]} Na4 {[%emt 0:00:27]} 32. Bxa4 {[%emt 0:00:17]} Bxa4 {[%emt 0:00:07]} 33. f4 {[%emt 0:00:18]} Qc4 {[%emt 0:01:54] And now ...Rd1+ would win.} 34. Qh5 {[%emt 0:01:30]} (34. Qe2 Qb3 35. Kg2) 34... Rd1+ {[%emt 0:00:38]} (34... exf4 $2 {leads to mate.} 35. Bxf6+ Kg8 36. Qg5+ Kf8 37. Qg7#) 35. Be1 {[%emt 0:00:28]} Qd4 {[%emt 0:02:09] Black mates.} 36. Qe2 {[%emt 0:00:22]} exf4 {[%emt 0:00:45][%mdl 64] Overworked Piece} 37. gxf4 {[%emt 0:00:06]} Bh4 {[%emt 0:00:16] Weighted Error Value: White=0.68/Black=0.17 (very precise)} 0-1

[Event "Lliga Catalana DH 2023"]
[Site "Catalonia"]
[Date "2023.03.04"]
[Round "7.7"]
[White "Valencia Jimenez, Jose"]
[Black "Juan Bartroli, Marc"]
[Result "0-1"]
[ECO "D04"]
[WhiteElo "2023"]
[BlackElo "2104"]
[Annotator "TA"]
[PlyCount "70"]
[EventDate "2023.01.24"]
[EventType "team-tourn"]
[EventCountry "ESP"]
[SourceTitle "playchess.com"]
[Source "ChessBase"]
[SourceQuality "1"]
[TimeControl "40/5400+30:1800+30"]

{[%evp 10,70,7,0,-2,-6,0,-19,-24,-24,-22,-26,-20,-27,-23,-71,-88,-92,-89,-110,-62,-105,-99,-86,-78,-166,-124,-170,-152,-171,-168,-246,-245,-378,-362,-549,-513,-514,-519,-516,-512,-525,-518,-512,-509,-929,-923,-896,-524,-515,-496,-512,-502,-1916,-541,-498,-515,-512,-501,-488,-449,-419,-422]} 1. Nf3 {[%emt 0:02:13]} d5 {[%emt 0:00:34]} 2. b3 {[%emt 0:00:07]} c5 {[%emt 0:00:43]} 3. Bb2 {[%emt 0:00:19]} Nc6 {[%emt 0:00:32]} 4. e3 {[%emt 0:00:44]} Nf6 {[%emt 0:00:32]} 5. d4 {[%emt 0:02:02]} Bg4 {[%emt 0:03:44]} 6. Nbd2 {[%emt 0:05:21]} cxd4 {[%emt 0:04:27] D04: Colle System.} 7. exd4 {[%emt 0:00:15]} e6 {[%emt 0:00:21]} 8. a3 {[%emt 0:08:38]} Rc8 {[%emt 0:01:55] The position is equal.} 9. Bd3 {[%emt 0:03:54]} Bd6 {[%emt 0:06:48]} 10. O-O {[%emt 0:03:44]} O-O {[%emt 0:01:53]} 11. h3 {[%emt 0:13:33]} Bh5 {[%emt 0:03:05] [#]} 12. g4 $146 {[%emt 0:04:03]} (12. Qe1 $11 {is superior.}) ({Predecessor:} 12. Re1 Re8 13. g4 Bg6 14. Bxg6 hxg6 15. Ne5 g5 16. c4 Nd7 17. Nd3 {1-0 Nakamura,H (2750)-Mamedyarov,S (2776) Berlin FIDE GP 3 KO 2022 (1.3)}) 12... Bg6 $17 {[%emt 0:00:53] Black continues to play with concentration.} 13. Bxg6 {[%emt 0:00:15]} hxg6 {[%emt 0:00:00]} 14. Ne5 {[%emt 0:18:55]} Qb6 {[%emt 0:15:05]} ({Black should play} 14... Ne4 $17 {Strongly threatening ...Qh4.} 15. Nxe4 dxe4) 15. g5 {[%emt 0:00:51]} Bxe5 {[%emt 0:03:37]} (15... Nxd4 {looks sharper.} 16. Ndc4 dxc4 17. Bxd4 Qa5) 16. dxe5 {[%emt 0:07:04]} Ne4 {[%emt 0:02:58] Black is more active.} 17. Nf3 {[%emt 0:12:22]} (17. Nxe4 $17 dxe4 18. Rc1) 17... Rfd8 {[%emt 0:02:32]} ({Weaker is} 17... Ng3 18. Re1 $17) 18. Kg2 {[%emt 0:03:35]} (18. Rc1 $17) 18... a5 {[%emt 0:00:49][%cal Ba7a5,Ba5a4][%mdl 32]} 19. Qe2 {[%emt 0:00:52]} a4 {[%emt 0:02:13]} 20. b4 {[%emt 0:01:37] [#]} (20. Rab1 {is a better defense.}) 20... Ne7 $1 $19 {[%emt 0:14:22]} 21. h4 {[%emt 0:01:36]} (21. Bd4 {was called for.} Qc7 22. Rac1) 21... Nf5 {[%emt 0:03:46]} 22. Rh1 {[%emt 0:02:25] [#]} (22. c3 {was necessary.}) 22... Qxf2+ $1 {[%emt 0:01:28][%mdl 512]} 23. Qxf2 {[%emt 0:00:00]} Nxf2 {[%emt 0:10:56] A dynamic duo of knights.} 24. Rhc1 {[%emt 0:02:36]} Ne4 25. Bd4 {[%emt 0:01:28]} Rc4 {[%emt 0:00:32]} 26. c3 {[%emt 0:00:43]} Rdc8 {[%emt 0:03:07][%cal Bd8c8,Bc8c3,Bc3c2,Bc2d2,Bd2d3,Bd3d4,Bd4c4][%mdl 32]} 27. Rab1 {[%emt 0:03:23]} (27. Bf2 $142) 27... Nxd4 {[%emt 0:00:00]} 28. Nxd4 {[%emt 0:00:00]} Rxc3 {[%emt 0:00:00]} 29. Rxc3 {[%emt 0:00:00]} Rxc3 {[%emt 0:00:00][%mdl 4096] Endgame KRN-KRN} 30. Nb5 {[%emt 0:00:00]} Rc2+ {[%emt 0:00:00]} 31. Kf3 {[%emt 0:00:08]} (31. Kg1 $142) 31... Nc3 {[%emt 0:00:00]} (31... Nd2+ $142 32. Ke2 Nxb1+ 33. Kf1 Ra2) 32. Nd4 {[%emt 0:00:56]} Rd2 {[%emt 0:00:00][%mdl 64] Trapped Piece} 33. Rc1 {[%emt 0:00:59]} Rd3+ {[%emt 0:00:00]} 34. Kg2 {[%emt 0:00:44]} Rxd4 {[%emt 0:00:00]} 35. Rxc3 {[%emt 0:00:01]} Rc4 {[%emt 0:00:00] Inhibits Rc8+.   Weighted Error Value: White=0.77/Black=0.42} (35... Rxh4 $2 {too greedy.} 36. Rc8+ Kh7 37. Rc7) 0-1

[Event "Lliga Catalana DH 2023"]
[Site "Catalonia"]
[Date "2023.03.04"]
[Round "7.7"]
[White "Saumoy Poch, Salvador"]
[Black "Obon Temprano, Sergi"]
[Result "0-1"]
[ECO "D45"]
[WhiteElo "2002"]
[BlackElo "2193"]
[Annotator "TA"]
[PlyCount "56"]
[EventDate "2023.01.24"]
[EventType "team-tourn"]
[EventCountry "ESP"]
[SourceTitle "playchess.com"]
[Source "ChessBase"]
[SourceQuality "1"]
[TimeControl "40/5400+30:1800+30"]

{[%evp 17,56,0,0,-7,0,-19,0,-27,0,0,0,0,0,0,0,0,0,0,0,0,0,0,0,-156,-158,-175,-171,-176,-180,-194,-167,-714,-604,-1002,-975,-952,-943,-844,-569,-595,-564]} 1. d4 d5 2. c4 c6 3. e3 Nf6 4. Nc3 e6 5. Nf3 Nbd7 6. cxd5 exd5 7. Bd3 Bd6 8. O-O O-O 9. Qc2 Re8 10. Re1 {D45: Semi-Slav: 5 e3.} h6 11. Rb1 a5 12. a3 {[#] The position is equal.} Qe7 $146 ({Predecessor:} 12... Kh8 13. e4 dxe4 14. Nxe4 Nxe4 15. Rxe4 Rxe4 16. Bxe4 Nf6 {½-½ Ashtiani,M (2088)-Nasri,A (2356) Urumia op 2nd 2008 (4)}) 13. e4 dxe4 14. Nxe4 Nxe4 15. Rxe4 Qd8 16. Rxe8+ Qxe8 17. Bd2 Nf6 18. Re1 Qd8 19. Ne5 {[%cal Od2h6]} Be6 20. b4 $2 {[#]} (20. Bf4 $11) 20... axb4 $17 21. axb4 Ra2 22. Qc1 Bxe5 23. Rxe5 Qxd4 24. Re3 (24. Qc3 Qxc3 25. Bxc3) 24... Nd5 {Black is clearly winning.} 25. Rg3 Ra1 26. Bb1 {White is weak on the light squares} Bf5 {[%cal Od4d2][%mdl 64] [#] ( -> ...Qxd2!). Pin} (26... Nxb4 $2 27. Bc3 $18) 27. Rb3 Rxb1 28. Rxb1 Bxb1 {Weighted Error Value: White=0.85/Black=0.44} 0-1

[Event "Lliga Catalana DH 2023"]
[Site "Catalonia"]
[Date "2023.03.04"]
[Round "7.8"]
[White "Martinez Ramirez, Erik"]
[Black "Navarro Perez, Manuel"]
[Result "1-0"]
[ECO "C47"]
[WhiteElo "2186"]
[BlackElo "2004"]
[Annotator "TA"]
[PlyCount "43"]
[EventDate "2023.01.24"]
[EventType "team-tourn"]
[EventCountry "ESP"]
[SourceTitle "playchess.com"]
[Source "ChessBase"]
[SourceQuality "1"]
[TimeControl "40/5400+30:1800+30"]

{[%evp 13,43,14,17,20,44,30,39,43,39,41,39,-66,-66,-68,150,143,221,221,240,239,238,185,226,167,151,160,153,164,150,150,962,945]} 1. e4 d6 2. d4 e5 3. Nf3 Nc6 4. dxe5 Nxe5 5. Nc3 Nf6 6. Nxe5 dxe5 7. Qxd8+ Kxd8 8. Bg5 {C47: Scotch Four Knights and Four Knights with 4 g3.} Be7 9. Rd1+ Bd7 10. Bc4 {White is slightly better.} Rf8 {[#]} 11. f4 $146 ({Predecessor:} 11. f3 c6 12. Ke2 Kc7 13. Rd3 Rad8 14. Rhd1 b5 15. Bb3 c5 16. Bxf6 Bxf6 17. Nd5+ {1-0 Jacob,T (1874)-Damm,H (1761) Dresden ZMD op-B 21st 2012 (3)}) 11... h6 12. Bh4 (12. Bxf6 $14 gxf6 13. Be2) 12... exf4 $15 13. e5 {[#]} Re8 $2 14. Bxf7 $1 $16 {White is much more active. The black rooks are badly placed.} ({Weaker is} 14. exf6 Bxf6+ 15. Kd2 Bxh4 $17) 14... Ng4 (14... Nh7 $16 {might work better.} 15. Bf2 Ng5) 15. Bxe7+ $18 Kxe7 16. Bxe8 Rxe8 17. O-O {And now Nd5+ would win.} g5 18. Rfe1 {Nd5+ is the strong threat.} Bc6 19. Nd5+ Bxd5 20. Rxd5 Ke6 21. Rd2 Nxe5 $2 {[#]} (21... h5 $16 22. h3 Ne3) 22. Rxe5+ $1 {[%mdl 512] Weighted Error Value: White=0.28 (precise) /Black=0.34} 1-0